bitfinex-derivatives/quotes_ETHF0:USTF0_20241230
["timestamp","ask_amount","ask_price","bid_price","bid_amount"]
[1735523111696,3.5009,3418.8,3418.4,0.29312]
[1735523111997,1.2037,3418.7,3418.4,0.29313]
[1735523112502,1.2037,3418.7,3418.1,44.0078]
[1735523112503,2.79723084,3418.5,3417.9,4.50047025]
[1735523112705,2.79723084,3418.1,3417.7,6.75070537]
[1735523112900,0.2932,3417.6,3417.5,6.75070537]
[1735523113203,4.08823084,3417.6,3417.3,7.2999405]
[1735523113391,3.50102,3417.4,3417.3,6.36875695]
[1735523113797,8.50102,3417.4,3417.3,1.20515695]
[1735523114299,0.29323,3417.2,3417.1,11.25117562]
[1735523114495,0.29323,3417.2,3416.1,0.8859]
[1735523114496,0.29328,3416.7,3416.1,0.8859]
[1735523114694,3.2078,3416.6,3416.1,0.8859]
[1735523115200,3.50109,3416.6,3416.1,0.8859]
[1735523115394,3.50109,3416.6,3415.9,1.46924]
[1735523115395,0.2933,3416.5,3415.9,1.46924]
[1735523115595,0.2933,3416.5,3415.9,1.1759]
[1735523116097,3.2078,3416.2,3415.9,1.1759]
[1735523116402,3.50113,3416.2,3415.5,0.29338]
[1735523116703,3.2078,3415.8,3415.5,0.29338]
[1735523117192,3.2078,3415.8,3415.4,1.19]
[1735523117398,3.2078,3415.8,3415.0,3.2078]
[1735523117698,3.2078,3415.4,3415.1,40.8]
[1735523117898,3.2078,3415.8,3415.1,40.8]
[1735523118097,3.2078,3415.8,3415.5,0.29338]
[1735523118290,3.2078,3415.8,3415.2,2.3368]
[1735523118597,0.29337,3415.6,3415.1,40.8]
[1735523118804,3.50116,3415.8,3415.2,0.2934]
[1735523119102,3.2078,3416.3,3415.4,3.2078]
[1735523119399,3.2078,3416.3,3415.8,41.09335]
[1735523119600,3.2078,3416.3,3415.8,40.8]
[1735523119799,3.2078,3416.3,3416.0,0.29333]
[1735523119999,3.2078,3416.3,3415.8,40.8]
[1735523120194,3.2078,3416.3,3416.1,0.29333]
[1735523120404,3.2078,3416.3,3416.0,0.29334]
[1735523120904,3.2078,3416.3,3415.8,44.0078]
[1735523121106,3.20048793,3416.3,3416.2,0.29332]
[1735523121404,3.2078,3416.9,3416.6,0.29328]
[1735523121803,3.2078,3416.9,3416.7,40.8]
[1735523122196,2.79723084,3417.2,3416.7,40.8]
[1735523122197,3.2078,3417.4,3416.7,40.8]
[1735523122503,3.2078,3417.4,3417.3,0.29323]
[1735523122701,3.2078,3418.0,3417.2,3.2078]
[1735523122902,3.44298967,3418.1,3417.6,3.2078]
[1735523123101,3.44298967,3418.1,3418.0,0.29317]
[1735523123302,3.44298967,3418.1,3417.7,0.29319]
[1735523123506,3.44298967,3418.1,3418.0,3.50097]
[1735523123698,3.2078,3418.8,3418.3,0.29314]
[1735523124008,3.2078,3418.8,3418.0,3.2078]
[1735523124600,0.29311,3418.6,3418.1,0.29316]
[1735523124800,2.79723084,3418.7,3418.0,3.2078]
[1735523124801,3.2078,3418.8,3418.0,3.2078]
[1735523125006,2.79723084,3418.7,3418.0,3.2078]
[1735523125212,3.2078,3418.8,3418.0,3.2078]
[1735523125504,3.2078,3418.8,3418.1,0.29316]
[1735523125705,3.5009,3418.8,3418.2,0.29314]
[1735523125905,2.79723084,3418.7,3418.0,3.2078]
[1735523126102,0.29315,3418.2,3417.7,0.29319]
[1735523126303,0.29314,3418.3,3417.6,3.2078]
[1735523126604,2.79723084,3418.7,3417.4,3.2078]
[1735523126801,3.2078,3418.0,3417.5,0.29321]
[1735523127114,3.50093,3418.4,3417.8,0.29318]
[1735523127316,3.50093,3418.4,3417.4,3.2078]
[1735523127317,3.2078,3418.4,3417.4,3.2078]
[1735523127529,0.29319,3417.8,3417.3,3.5068]
[1735523127817,3.2078,3418.0,3417.3,3.5068]
[1735523128004,0.29319,3417.8,3417.3,3.5068]
[1735523128912,3.2078,3417.6,3417.3,2.3938]
[1735523129709,0.29321,3417.5,3417.3,1.196]
[1735523130011,0.29322,3417.4,3417.0,3.2078]
[1735523130502,3.2078,3417.6,3417.0,3.2078]
[1735523130712,0.29324,3417.1,3416.4,1.1594]
[1735523130905,3.2078,3416.8,3416.4,1.1594]
[1735523131106,3.2078,3416.8,3416.5,40.8]
[1735523131306,3.2078,3417.2,3416.5,40.8]
[1735523131609,3.2078,3417.2,3416.5,45.8]
[1735523131802,3.50101,3417.6,3416.8,0.29327]
[1735523132000,3.50101,3417.6,3417.0,0.29325]
[1735523132213,0.29322,3417.5,3416.9,1.44266]
[1735523132406,3.2078,3417.2,3417.0,0.29325]
[1735523132812,2.79723084,3417.1,3415.7,3.2078]
[1735523133006,3.2078,3417.2,3416.3,1.1494]
[1735523133211,3.50104,3417.2,3416.6,0.29328]
[1735523133515,3.2078,3416.8,3416.3,1.1494]
[1735523133814,3.2078,3416.8,3416.4,0.2933]
[1735523134012,3.2078,3416.8,3416.3,1.1494]
[1735523134415,3.2078,3416.8,3416.7,0.29328]
[1735523134906,3.2078,3416.8,3416.6,0.29328]
[1735523135113,3.2078,3416.8,3416.5,0.29329]
[1735523135314,3.2078,3416.8,3416.7,0.29328]
[1735523135707,3.2078,3416.8,3416.3,1.1494]
[1735523135909,3.2078,3416.8,3416.7,0.29328]
[1735523136817,3.2078,3417.6,3416.6,3.2078]
[1735523137004,3.2078,3417.6,3417.2,0.29323]
[1735523137005,3.501,3417.6,3417.2,0.29323]
[1735523137210,3.2078,3417.6,3417.3,1.1284]
[1735523137412,0.29321,3417.5,3417.3,1.1284]
[1735523137613,0.29322,3417.4,3417.3,1.1284]
[1735523137911,0.29322,3417.4,3416.7,2.4065]
[1735523137912,3.2078,3417.6,3416.7,3.5349]
[1735523138111,3.2078,3417.6,3417.5,0.29321]
[1735523138321,3.01585331,3418.9,3417.4,3.2078]
[1735523138322,6.00503084,3418.6,3417.4,3.2078]
[1735523138618,0.29314,3418.4,3418.0,0.29316]
[1735523138914,6.00503084,3418.6,3418.4,0.29313]
[1735523138915,3.2078,3418.6,3418.4,0.29313]
[1735523139113,3.2078,3418.6,3417.6,1.1532]
[1735523139314,3.50092,3418.6,3418.2,0.29314]
[1735523139708,3.2078,3418.6,3417.6,1.1532]
[1735523139912,5.49092331,3419.0,3418.9,0.29309]
[1735523140115,5.49092331,3419.0,3418.2,3.2078]
[1735523140116,3.2078,3419.0,3418.8,0.29309]
[1735523140616,3.2078,3419.0,3418.4,1.2111]
[1735523140808,3.2078,3419.0,3418.8,0.29309]
[1735523141219,3.50085,3419.4,3418.4,1.2111]
[1735523141419,3.50085,3419.4,3419.1,0.29307]
[1735523141816,3.2078,3419.4,3419.3,0.29305]
[1735523142116,3.2078,3419.4,3419.3,41.09305]
[1735523142422,2.80446,3420.7,3419.7,0.29302]
[1735523142423,3.2078,3419.8,3419.7,0.29302]
[1735523142917,3.2078,3420.3,3420.2,0.29297]
[1735523143114,3.2078,3420.4,3420.0,0.29299]
[1735523143818,3.50076,3420.4,3419.9,0.293]
[1735523144211,3.2078,3420.4,3419.6,0.29303]
[1735523144407,3.50076,3420.4,3419.9,0.293]
[1735523144609,3.2078,3420.4,3419.5,4.3886]
[1735523145015,0.29298,3420.2,3419.7,0.29302]
[1735523145414,3.2078,3420.4,3419.5,3.2078]
[1735523145619,2.79723084,3419.8,3419.1,3.2078]
[1735523145821,4.08723084,3419.8,3419.1,3.2078]
[1735523146416,0.29304,3419.5,3419.1,3.2078]
[1735523147219,1.29,3419.8,3419.1,3.2078]
[1735523147423,1.29,3419.8,3419.3,0.29305]
[1735523147725,1.29,3419.8,3419.1,3.2078]
[1735523148719,0.29303,3419.6,3419.1,3.50087]
[1735523149318,1.58302,3419.8,3419.2,0.29306]
[1735523149528,1.58302,3419.8,3419.1,3.2078]
[1735523149529,3.2078,3419.9,3419.1,8.2078]
[1735523149826,3.2078,3419.9,3419.8,0.29301]
[1735523152431,3.50072,3420.9,3419.6,1.02559]
[1735523152625,0.29294,3420.7,3420.3,0.29297]
[1735523153020,3.2078,3420.9,3419.9,3.2078]
[1735523153222,3.2078,3420.9,3420.8,0.29293]
[1735523153527,3.2078,3420.9,3420.3,3.2078]
[1735523153727,3.2078,3420.9,3420.8,0.29293]
[1735523154725,3.2078,3421.4,3421.2,0.29289]
[1735523155025,3.2078,3421.4,3420.5,0.73239]
[1735523155234,3.2078,3421.4,3420.6,1.2666]
[1735523155425,0.29294,3420.7,3420.3,0.29297]
[1735523155728,3.2078,3420.6,3419.9,1.2422]
[1735523155928,3.2078,3420.6,3420.1,0.29298]
[1735523155929,0.29295,3420.5,3420.1,0.29298]
[1735523156128,3.2078,3420.6,3419.9,1.2422]
[1735523156335,3.2078,3420.6,3420.4,0.29296]
[1735523156837,3.2078,3421.3,3420.2,6.00503084]
[1735523157031,3.2078,3421.3,3420.6,3.2078]
[1735523157228,3.2078,3421.3,3421.1,0.2929]
[1735523157430,3.2078,3421.3,3420.7,2.4387]
[1735523157734,2.79723084,3422.2,3421.2,3.50069]
[1735523157925,3.2078,3421.9,3421.8,0.29284]
[1735523158836,3.2078,3421.9,3421.2,3.2078]
[1735523159028,3.2078,3421.9,3421.6,0.29286]
[1735523159532,3.2078,3421.9,3421.3,0.29288]
[1735523159533,0.29286,3421.7,3421.3,0.29288]
[1735523159836,3.2078,3421.4,3421.3,0.29288]
[1735523160337,3.2078,3421.8,3421.6,0.29285]
[1735523160532,3.2078,3421.8,3420.8,9.4012]
[1735523160729,3.2078,3421.8,3421.7,0.29285]
[1735523161036,3.2078,3421.8,3421.6,0.29286]
[1735523161237,3.50064,3421.8,3421.4,0.29287]
[1735523161534,3.2078,3421.8,3421.4,0.29287]
[1735523161730,3.2078,3421.8,3420.8,4.4012]
[1735523161924,3.2078,3421.8,3421.7,0.29285]
[1735523162535,3.2078,3422.2,3422.1,0.29281]
[1735523162835,3.2078,3422.2,3421.6,1.1773]
[1735523163134,3.2078,3422.2,3422.1,0.29281]
[1735523163340,3.2078,3422.2,3422.0,0.29282]
[1735523163727,3.2078,3422.2,3422.1,0.29281]
[1735523164841,0.29283,3422.0,3421.7,0.29284]
[1735523165135,0.29283,3422.0,3420.8,1.1934]
[1735523165136,3.2078,3421.8,3421.0,3.2078]
[1735523165531,3.2078,3421.8,3421.7,0.29285]
[1735523167132,0.29287,3421.5,3421.1,0.2929]
[1735523167339,3.2078,3421.4,3420.6,3.2078]
[1735523167534,3.2078,3421.0,3420.8,0.29292]
[1735523167739,3.2078,3421.0,3420.9,0.29292]
[1735523169032,3.2078,3421.5,3420.7,3.2078]
[1735523169240,3.50067,3421.5,3421.1,0.29289]
[1735523170340,0.29292,3420.9,3420.5,1.47595]
[1735523170535,3.2078,3421.1,3420.5,1.183]
[1735523170734,3.2078,3421.1,3420.6,0.29294]
[1735523170936,3.2078,3421.1,3420.5,1.183]
[1735523171137,3.2078,3421.1,3421.0,0.29291]
[1735523171339,0.29287,3421.5,3420.6,40.8]
[1735523171340,3.2078,3421.5,3420.6,41.53236]
[1735523171539,3.2078,3421.5,3421.4,0.29287]
[1735523172341,3.2078,3421.5,3421.4,41.09287]
[1735523172938,3.2078,3421.5,3421.4,40.8]
[1735523173239,0.29289,3421.3,3420.9,0.29292]
[1735523173442,3.2078,3421.0,3420.9,0.29292]
[1735523173833,3.2078,3421.0,3420.8,0.29292]
[1735523174446,3.2078,3421.0,3420.6,42.0262]
[1735523174944,3.50068,3421.4,3421.1,0.2929]
[1735523175135,3.2078,3421.4,3420.6,45.234]
[1735523175444,0.2929,3421.1,3420.9,0.29292]
[1735523175739,0.29293,3420.7,3420.6,1.2262]
[1735523175937,0.29293,3420.7,3420.5,2.4026]
[1735523175938,4.10323084,3420.8,3419.6,3.2078]
[1735523176241,3.2078,3419.9,3419.7,1.2472]
[1735523176440,0.29301,3419.8,3419.4,1.49814]
[1735523176649,3.2078,3419.9,3419.4,1.2051]
[1735523176939,3.2078,3419.9,3419.5,0.29304]
[1735523177352,3.2078,3419.9,3419.4,1.2051]
[1735523177640,3.2078,3419.9,3418.8,2.5128]
[1735523177641,6.00503084,3419.5,3418.8,1.2472]
[1735523177945,6.00503084,3419.5,3418.1,3.2078]
[1735523177946,3.50089,3418.9,3418.4,0.29313]
[1735523178245,2.79723084,3419.1,3418.1,3.2078]
[1735523178246,3.2078,3418.5,3418.2,1.1761]
[1735523178636,3.2078,3418.5,3417.7,4.4601]
[1735523178838,3.50093,3418.5,3418.0,0.29317]
[1735523179044,3.2078,3418.5,3417.7,4.4601]
[1735523179243,0.29314,3418.4,3417.8,41.09318]
[1735523179638,0.29314,3418.4,3417.8,40.8]
[1735523180039,0.29314,3418.4,3417.8,41.09318]
[1735523180247,3.2078,3418.5,3417.8,40.8]
[1735523180544,3.2078,3418.5,3418.0,0.29316]
[1735523180841,3.2078,3418.5,3418.4,0.29313]
[1735523181047,3.2078,3418.5,3417.8,40.8]
[1735523181248,3.2078,3418.5,3418.1,0.29315]
[1735523181441,3.2078,3418.5,3418.2,0.29314]
[1735523181641,3.2078,3418.5,3418.3,0.29314]
[1735523181947,3.2078,3418.5,3417.8,40.8]
[1735523182339,3.2078,3418.5,3418.3,0.29314]
[1735523182642,3.2078,3418.5,3417.8,40.8]
[1735523182846,3.2078,3418.5,3418.4,0.29313]
[1735523183648,3.2078,3418.5,3418.4,41.09313]
[1735523184045,3.2078,3418.5,3418.4,40.8]
[1735523184345,0.29315,3418.2,3417.7,4.4601]
[1735523184548,3.50092,3418.5,3417.9,0.29317]
[1735523185049,0.29313,3418.4,3417.9,0.29317]
[1735523185241,0.29313,3418.4,3417.8,0.29317]
[1735523185643,3.50093,3418.5,3417.9,0.29317]
[1735523186146,3.2078,3418.5,3417.9,0.29317]
[1735523186347,0.29314,3418.4,3417.7,4.4601]
[1735523186552,0.29314,3418.4,3417.8,0.29318]
[1735523186746,3.2078,3418.5,3417.7,4.4601]
[1735523186945,0.29313,3418.4,3417.8,0.29318]
[1735523187141,3.2078,3418.5,3417.9,0.29317]
[1735523187449,3.2078,3418.5,3417.7,4.4601]
[1735523187745,3.2078,3418.5,3418.2,0.29315]
[1735523188347,3.2078,3418.9,3418.1,3.2078]
[1735523188642,3.2078,3419.4,3418.2,1.2389]
[1735523188837,3.2078,3419.4,3419.0,0.29307]
[1735523189044,3.2078,3419.4,3418.9,0.29308]
[1735523189246,3.2078,3419.4,3418.7,2.3502]
[1735523189639,3.2078,3419.4,3419.3,0.29305]
[1735523190540,3.2078,3419.9,3419.7,0.29301]
[1735523190743,3.2078,3419.9,3419.1,3.2078]
[1735523190952,3.2078,3419.9,3419.2,1.2529]
[1735523191146,3.2078,3419.9,3419.5,0.29303]
[1735523191450,3.2078,3419.9,3419.6,1.1629]
[1735523191650,3.2078,3419.9,3419.3,40.8]
[1735523191852,0.29303,3419.6,3419.3,40.8]
[1735523192046,3.2078,3419.9,3419.2,1.2529]
[1735523192246,0.29303,3419.6,3419.1,3.50087]
[1735523192644,0.29303,3419.6,3419.2,0.29306]
[1735523193246,6.00503084,3419.5,3418.6,4.4607]
[1735523193645,0.29307,3419.2,3418.8,1.48429]
[1735523194349,6.00503084,3419.5,3418.8,1.1912]
[1735523194652,0.29305,3419.4,3418.6,3.2078]
[1735523194849,0.2931,3418.8,3418.6,3.2078]
[1735523195753,6.00503084,3419.5,3418.6,3.2078]
[1735523195943,3.2078,3419.1,3418.4,3.2078]
[1735523196139,3.50087,3419.1,3418.7,0.2931]
[1735523196349,3.50087,3419.1,3418.6,0.29311]
[1735523196652,3.2078,3419.5,3419.1,0.29306]
[1735523196858,3.50084,3419.5,3419.0,0.29308]
[1735523197150,3.2078,3419.5,3419.4,0.29305]
[1735523197551,3.2078,3419.5,3418.6,0.73279]
[1735523197849,3.2078,3419.5,3419.3,0.29305]
[1735523198145,3.2078,3419.5,3419.4,1.2261]
[1735523198942,3.2078,3419.5,3419.2,0.29306]
[1735523199150,6.00503084,3419.5,3418.5,1.1821]
[1735523199351,0.29308,3419.1,3418.7,0.2931]
[1735523199552,6.00503084,3419.1,3418.5,1.1821]
[1735523199749,0.29311,3418.7,3418.5,1.1821]
[1735523199951,11.00503084,3419.1,3418.4,3.2078]
[1735523200147,0.29313,3418.5,3418.1,0.29315]
[1735523200350,0.29312,3418.6,3418.2,0.29314]
[1735523200741,1.1415,3419.0,3418.0,3.2078]
[1735523200946,0.29312,3418.6,3418.2,0.29314]
[1735523201749,1.1415,3419.0,3418.0,3.2078]
[1735523201957,2.79723084,3418.7,3418.0,3.2078]
[1735523202255,0.29315,3418.2,3418.0,3.2078]
[1735523202442,0.29315,3418.2,3417.8,1.47528]
[1735523202846,0.29316,3418.1,3417.8,1.47528]
[1735523203254,3.2078,3418.5,3417.8,1.47528]
[1735523203558,3.2078,3418.1,3417.9,0.29317]
[1735523203855,3.2078,3418.1,3417.8,41.9821]
[1735523204047,3.2078,3418.1,3417.8,42.27528]
[1735523204555,3.2078,3418.1,3417.9,0.29317]
[1735523204753,3.2078,3418.1,3417.8,41.9821]
[1735523204952,3.50096,3418.1,3417.8,42.27528]
[1735523205555,3.2078,3418.1,3417.8,41.9821]
[1735523205855,3.2078,3418.1,3417.8,42.27528]
[1735523206056,3.50096,3418.1,3417.8,1.47528]
[1735523206247,3.2078,3418.1,3417.8,1.1821]
[1735523206448,0.29317,3418.0,3417.8,1.1821]
[1735523206949,3.2078,3418.1,3417.8,1.1821]
[1735523207147,3.2078,3418.1,3418.0,0.29317]
[1735523207755,3.2078,3418.1,3418.0,41.09317]
[1735523207948,3.2078,3418.1,3417.8,1.1821]
[1735523208152,0.29317,3417.9,3417.8,1.1821]
[1735523208557,3.2078,3418.1,3417.6,40.8]
[1735523208747,0.29321,3417.5,3417.4,3.2078]
[1735523209053,0.29321,3417.5,3416.9,1.2478]
[1735523209054,0.29325,3417.0,3416.9,1.2478]
[1735523209256,0.29326,3416.9,3416.8,3.2078]
[1735523209450,0.29326,3417.0,3416.8,3.2078]
[1735523209651,2.79723084,3417.5,3416.8,3.2078]
[1735523209957,0.29325,3417.0,3416.8,3.2078]
[1735523210158,0.29326,3416.9,3416.8,3.2078]
[1735523211157,0.29326,3416.9,3416.5,1.2478]
[1735523211158,0.29329,3416.6,3416.5,1.2478]
[1735523211457,0.29328,3416.7,3416.5,1.2478]
[1735523212060,0.29329,3416.6,3416.2,0.29332]
[1735523212364,3.2078,3416.4,3416.0,2.388]
[1735523212559,3.2078,3416.4,3416.1,0.29333]
[1735523213059,3.2078,3416.4,3416.0,2.388]
[1735523213455,3.2078,3416.4,3416.1,0.29332]
[1735523213655,3.2078,3416.4,3416.2,0.29331]
[1735523213852,3.2078,3416.4,3416.0,1.2041]
[1735523214059,0.29332,3416.2,3415.7,1.2277]
[1735523214260,0.29332,3416.2,3415.8,0.29335]
[1735523214558,2.79723084,3416.3,3415.8,0.29335]
[1735523214752,0.29333,3416.2,3415.7,42.32106]
[1735523214956,2.79723084,3416.3,3415.7,42.32106]
[1735523215259,2.79723084,3416.3,3416.0,0.29334]
[1735523215455,0.29332,3416.2,3415.8,0.29335]
[1735523215658,0.29332,3416.2,3415.7,42.0277]
[1735523215659,2.79723084,3416.3,3415.7,42.0277]
[1735523215855,2.79723084,3416.3,3415.7,42.32106]
[1735523216053,0.29333,3416.1,3415.7,42.32106]
[1735523216661,6.00503084,3415.9,3415.3,1.1918]
[1735523216964,0.29338,3415.5,3415.3,1.1918]
[1735523217168,6.00503084,3415.9,3415.2,1.2507]
[1735523217660,3.2078,3415.4,3415.1,40.8]
[1735523218158,3.2078,3415.4,3415.0,0.29342]
[1735523218357,3.50119,3415.4,3414.9,0.29343]
[1735523218560,3.50119,3415.4,3415.0,0.29342]
[1735523218561,3.2078,3415.4,3415.0,0.29342]
[1735523219364,3.2078,3415.4,3414.8,40.8]
[1735523219558,8.2078,3415.4,3413.0,0.2936]
[1735523219754,2.79723084,3413.6,3413.3,6.68598983]
[1735523219959,3.2078,3413.4,3413.3,6.68598983]
[1735523220262,3.2078,3414.4,3413.3,12.69102067]
[1735523220466,3.2078,3414.8,3413.9,3.2078]
[1735523220766,3.2078,3414.7,3413.7,3.2078]
[1735523220954,3.2078,3414.7,3414.2,0.29349]
[1735523221158,3.2078,3414.7,3413.8,1.1691]
[1735523221359,3.2078,3414.7,3414.1,0.29349]
[1735523221566,3.2078,3414.2,3413.8,1.1691]
[1735523221761,0.2935,3414.1,3413.8,1.1691]
[1735523221971,3.2078,3414.2,3413.8,1.1691]
[1735523222167,2.79723084,3414.0,3413.5,1.2777]
[1735523222368,0.29353,3413.7,3413.5,1.2777]
[1735523222667,3.2078,3413.8,3413.2,1.1691]
[1735523222863,0.29356,3413.4,3413.2,1.1691]
[1735523223166,0.2936,3413.0,3412.7,1.165]
[1735523223366,3.2078,3412.8,3412.4,9.25122655]
[1735523223864,3.2078,3412.8,3412.4,8.95758655]
[1735523224164,3.2078,3412.8,3411.9,1.2514]
[1735523224165,1.41,3412.7,3411.6,6.68598983]
[1735523224461,3.2078,3411.7,3411.6,6.97969983]
[1735523224966,3.2078,3411.7,3411.6,47.77969983]
[1735523225965,3.2078,3411.7,3411.6,41.09371]
[1735523226164,11.00503084,3411.7,3411.6,40.8]
[1735523226360,8.2078,3411.7,3409.9,3.2078]
[1735523226558,3.2078,3410.9,3410.7,0.29379]
[1735523226963,3.2078,3410.9,3410.8,0.29378]
[1735523227160,3.50158,3410.9,3410.2,0.29383]
[1735523227363,2.79723084,3410.6,3410.0,40.8]
[1735523227661,3.2078,3410.9,3410.0,40.8]
[1735523228068,3.2078,3410.9,3410.7,0.29379]
[1735523228970,3.2078,3410.9,3410.0,40.8]
[1735523229161,3.2078,3410.9,3410.5,0.2938]
[1735523229363,3.2078,3410.9,3410.0,40.8]
[1735523229765,3.2078,3410.9,3410.4,0.29381]
[1735523230468,3.2078,3410.9,3410.0,40.8]
[1735523230665,1.1493,3411.7,3411.1,0.29375]
[1735523230666,3.2078,3411.3,3411.1,0.29375]
[1735523230868,3.2078,3411.3,3410.1,0.73461]
[1735523230869,3.2078,3411.3,3410.2,1.166]
[1735523231069,3.2078,3410.9,3410.7,0.29379]
[1735523231264,3.2078,3410.9,3410.2,1.166]
[1735523231265,3.2078,3410.9,3410.4,0.29381]
[1735523231471,3.50158,3410.9,3410.3,0.29382]
[1735523231765,3.2078,3410.9,3410.4,0.29382]
[1735523231972,3.50157,3410.9,3410.3,0.29382]
[1735523232172,3.2078,3410.9,3410.5,0.29381]
[1735523232372,3.2078,3410.9,3410.8,0.29378]
[1735523233571,2.5623,3411.9,3410.8,40.8]
[1735523233572,3.2078,3411.3,3410.8,40.8]
[1735523234170,3.2078,3410.9,3410.8,40.8]
[1735523234565,3.2078,3410.9,3410.8,41.09378]
[1735523234770,3.2078,3411.3,3411.2,0.29375]
[1735523235367,3.2078,3411.3,3410.8,40.8]
[1735523235568,3.2078,3410.9,3410.8,41.09378]
[1735523236272,3.2078,3411.5,3410.8,40.8]
[1735523236468,3.50153,3411.5,3411.0,0.29376]
[1735523236774,3.2078,3411.1,3411.0,0.29377]
[1735523236963,3.2078,3411.1,3410.8,40.8]
[1735523237163,3.2078,3411.1,3411.0,0.29377]
[1735523237867,3.2078,3411.1,3410.8,41.09378]
[1735523238061,0.29379,3410.8,3410.4,0.29381]
[1735523238262,3.2078,3410.6,3410.4,0.29381]
[1735523238466,3.2078,3410.6,3410.3,1.2206]
[1735523238467,3.2078,3410.6,3410.2,0.29383]
[1735523238778,3.2078,3410.6,3410.4,40.8]
[1735523239070,3.2078,3410.6,3409.7,2.4271]
[1735523239270,3.2078,3410.0,3409.9,0.29386]
[1735523239466,3.2078,3410.0,3409.2,1.2207]
[1735523239467,3.2078,3410.0,3409.4,40.8]
[1735523239670,3.2078,3409.6,3409.5,0.29389]
[1735523240173,3.19108743,3410.5,3409.9,0.29385]
[1735523240479,3.2078,3410.0,3409.9,0.29385]
[1735523242371,3.2078,3410.0,3409.4,41.53476]
[1735523242372,3.2078,3410.0,3409.8,0.29386]
[1735523242571,3.2078,3410.0,3409.9,0.29386]
[1735523243073,3.2078,3410.0,3409.4,40.8]
[1735523243074,3.2078,3410.4,3409.4,40.8]
[1735523243277,3.2078,3410.4,3409.6,3.2078]
[1735523243470,1.206,3410.9,3410.2,0.29383]
[1735523243675,3.2078,3410.3,3410.2,0.29383]
[1735523243975,3.2078,3410.3,3409.4,40.8]
[1735523244177,3.2078,3409.9,3409.8,0.29387]
[1735523244972,3.2078,3410.3,3409.6,3.2078]
[1735523245277,3.2078,3410.3,3410.2,0.29383]
[1735523246281,3.2078,3410.9,3410.8,0.29378]
[1735523247875,3.2078,3411.7,3410.6,3.2078]
[1735523248072,3.2078,3411.7,3410.9,3.2078]
[1735523248272,3.2078,3411.7,3411.6,0.29371]
[1735523250478,3.2078,3411.7,3411.3,1.2208]
[1735523250777,3.2078,3411.7,3411.6,0.29371]
[1735523250984,3.2078,3411.7,3411.4,0.29373]
[1735523251274,3.50151,3411.7,3411.4,0.29373]
[1735523251474,3.2078,3411.7,3411.3,1.2208]
[1735523252078,3.2078,3411.7,3411.6,0.29371]
[1735523253375,3.2078,3411.7,3411.6,0.29806664]
[1735523256678,3.2078,3412.7,3411.6,8.21215664]
[1735523256878,2.8110611,3413.0,3412.2,3.2078]
[1735523257077,6.0188611,3413.0,3411.8,0.73425]
[1735523257284,3.2078,3412.9,3412.1,3.2078]
[1735523257482,2.8110611,3412.7,3412.6,0.29363]
[1735523257788,2.8110611,3412.7,3412.1,3.94197]
[1735523257789,3.2078,3412.9,3412.8,0.29361]
[1735523259181,3.2078,3413.5,3412.7,3.2078]
[1735523259382,3.2078,3413.5,3413.4,0.29356]
[1735523260474,1.2989,3413.8,3413.7,0.29353]
[1735523260680,3.2078,3414.1,3414.0,0.29351]
[1735523261087,0.29351,3414.0,3413.4,0.29356]
[1735523261287,3.2078,3413.7,3412.7,4.4796]
[1735523261490,1.3298,3413.6,3412.7,4.4796]
[1735523261692,1.3298,3413.6,3413.5,0.29355]
[1735523262192,1.3298,3413.6,3412.3,3.2078]
[1735523262393,3.2078,3413.2,3412.5,1.3008]
[1735523262588,3.2078,3413.2,3413.1,0.29358]
[1735523262886,0.29361,3412.9,3412.5,1.59443]
[1735523263085,0.29362,3412.7,3412.3,3.50145]
[1735523263287,2.8110611,3412.9,3412.3,3.2078]
[1735523263489,3.2078,3413.2,3413.1,0.29358]
[1735523264395,7.3486611,3413.6,3412.7,3.2078]
[1735523264589,0.3207,3414.7,3413.3,3.2078]
[1735523264590,6.0188611,3414.0,3413.3,3.2078]
[1735523264994,6.0188611,3414.0,3413.8,0.29352]
[1735523265789,6.0188611,3414.0,3413.3,3.2078]
[1735523266097,3.2078,3414.0,3413.9,0.29352]
[1735523266295,7.2876611,3414.4,3414.2,0.29349]
[1735523266490,7.2876611,3414.4,3413.5,1.2594]
[1735523266795,7.2876611,3414.4,3414.2,0.29349]
[1735523266993,6.0188611,3414.4,3414.2,0.29349]
[1735523267298,6.0188611,3414.4,3413.6,42.0777]
[1735523267594,3.2078,3414.4,3414.3,0.29348]
[1735523269100,1.2862,3415.2,3414.3,3.2078]
[1735523269300,1.2862,3415.2,3415.1,0.29341]
[1735523269793,3.2078,3415.3,3415.2,0.2934]
[1735523272310,3.2078,3415.3,3414.5,1.259]
[1735523272507,0.29346,3414.6,3413.9,3.2078]
[1735523272712,6.3123111,3414.7,3414.4,0.29347]
[1735523272914,6.0188611,3414.7,3413.9,3.2078]
[1735523273419,0.29346,3414.6,3414.3,0.29348]
[1735523273617,6.0188611,3414.7,3413.9,3.2078]
[1735523273914,3.2078,3414.7,3414.6,0.29346]
[1735523274411,3.2078,3414.7,3413.9,8.94158]
[1735523274412,4.478,3415.1,3414.4,3.2078]
[1735523274717,4.478,3415.1,3414.9,0.29342]
[1735523274921,4.478,3415.1,3414.8,0.29344]
[1735523275912,7.2890611,3415.1,3414.1,40.8]
[1735523276109,0.29347,3414.5,3414.1,0.29349]